bitfinex/quotes_BTCUSD_20220101
["timestamp","ask_amount","ask_price","bid_price","bid_amount"]
[1641075214246,0.29906644,47289.0,47287.0,0.34515417]
[1641075214444,0.27987956,47289.0,47287.0,0.34515417]
[1641075215444,0.26118403,47289.0,47287.0,0.34515417]
[1641075215846,0.21118403,47289.0,47287.0,0.34515417]
[1641075216748,0.21118403,47289.0,47287.0,0.39802917]
[1641075222945,0.21118403,47289.0,47287.0,0.34515417]
[1641075228309,0.21118403,47289.0,47288.0,0.4182883]
[1641075228513,0.21118403,47289.0,47288.0,0.7572503]
[1641075228761,0.21118403,47289.0,47288.0,0.431162]
[1641075229163,0.21118403,47289.0,47288.0,1.841162]
[1641075230963,0.21118403,47289.0,47288.0,0.431162]
[1641075231166,0.21118403,47289.0,47288.0,1.3795381]
[1641075232166,0.21118403,47289.0,47288.0,1.1595381]
[1641075233204,0.21118403,47289.0,47288.0,1.4395381]
[1641075233395,0.21118403,47289.0,47288.0,1.1595381]
[1641075234896,0.21118403,47289.0,47288.0,0.8495381]
[1641075235099,0.08731589,47294.0,47289.0,0.338962]
[1641075235301,0.07163066,47297.0,47288.0,0.5105761]
[1641075235598,7.303e-05,47292.0,47288.0,0.5105761]
[1641075235999,0.052873,47291.0,47283.0,0.60124208]
[1641075236267,0.052874,47288.0,47284.0,7.303e-05]
[1641075236468,0.05288284,47287.0,47284.0,7.303e-05]
[1641075236866,0.05288284,47287.0,47282.0,0.00010955]
[1641075237068,0.105771,47286.0,47282.0,0.00010955]
[1641075237268,0.052885,47285.0,47282.0,0.00010955]
[1641075237468,0.052885,47284.0,47281.0,0.0001278]
[1641075238573,0.052885,47284.0,47279.0,0.00016432]
[1641075238574,0.052885,47283.0,47279.0,0.00016432]
[1641075238768,0.052886,47282.0,47280.0,0.338962]
[1641075239169,0.052886,47282.0,47281.0,0.2601278]
[1641075239369,0.052886,47282.0,47281.0,0.0001278]
[1641075239770,0.052886,47282.0,47279.0,0.00016432]
[1641075240014,0.105773,47282.0,47280.0,0.838962]
[1641075240414,0.15866205,47282.0,47281.0,0.0001278]
[1641075241013,0.105773,47282.0,47281.0,0.0001278]
[1641075241616,0.105773,47282.0,47280.0,0.4951278]
[1641075242715,0.105773,47282.0,47281.0,0.778962]
[1641075242915,0.105773,47282.0,47281.0,0.338962]
[1641075244950,0.315773,47282.0,47281.0,0.338962]
[1641075245149,0.315773,47282.0,47280.0,0.4951278]
[1641075246354,0.33553485,47282.0,47280.0,0.4951278]
[1641075247423,0.35519874,47282.0,47280.0,0.4951278]
[1641075247622,0.33543689,47282.0,47280.0,0.4951278]
[1641075248421,0.35349982,47282.0,47280.0,0.4951278]
[1641075248624,0.33383593,47282.0,47280.0,0.4951278]
[1641075249423,0.35539564,47282.0,47280.0,0.4951278]
[1641075249624,0.33733271,47282.0,47280.0,0.4951278]
[1641075250526,0.35868921,47282.0,47280.0,0.4951278]
[1641075250725,0.3371295,47282.0,47280.0,0.4951278]
[1641075251571,0.4371295,47282.0,47280.0,0.4951278]
[1641075251775,0.49002097,47282.0,47280.0,0.4951278]
[1641075252168,0.48899853,47282.0,47280.0,0.4951278]
[1641075252568,0.48891813,47282.0,47280.0,0.4951278]
[1641075252971,0.33602666,47282.0,47280.0,0.4951278]
[1641075253170,0.33602666,47282.0,47281.0,0.978962]
[1641075253171,0.23025366,47282.0,47281.0,0.978962]
[1641075253569,0.231821,47282.0,47281.0,0.978962]
[1641075253971,0.231821,47282.0,47281.0,0.979622]
[1641075254372,0.231821,47282.0,47281.0,0.978962]
[1641075254574,0.21,47282.0,47281.0,1.028962]
[1641075254999,0.21,47282.0,47281.0,1.458962]
[1641075255400,0.21,47282.0,47281.0,1.028962]
[1641075258503,0.21118418,47282.0,47281.0,1.028962]
[1641075258760,0.21118418,47282.0,47280.0,0.4951278]
[1641075258960,0.26118418,47282.0,47280.0,0.4951278]
[1641075259161,0.31407769,47282.0,47280.0,0.4951278]
[1641075259559,0.41407769,47282.0,47280.0,0.4951278]
[1641075260561,0.5400655,47282.0,47280.0,0.4951278]
[1641075260761,0.338962,47281.0,47280.0,0.4951278]
[1641075260959,0.391859,47281.0,47280.0,0.4951278]
[1641075261160,0.87369467,47281.0,47280.0,0.4951278]
[1641075261359,0.491859,47281.0,47280.0,0.4951278]
[1641075261560,0.89708825,47281.0,47280.0,0.4951278]
[1641075262610,0.91634166,47281.0,47280.0,0.4951278]
[1641075262810,0.89679123,47281.0,47280.0,0.4951278]
[1641075263610,0.53045273,47281.0,47280.0,0.4951278]
[1641075263811,0.51119932,47281.0,47280.0,0.4951278]
[1641075264614,0.52956988,47281.0,47280.0,0.4951278]
[1641075264810,0.89220215,47281.0,47280.0,0.4951278]
[1641075265612,0.91343013,47281.0,47280.0,0.4951278]
[1641075265911,0.89505957,47281.0,47280.0,0.4951278]
[1641075266555,0.91686634,47281.0,47280.0,0.4951278]
[1641075266756,0.89563836,47281.0,47280.0,0.4951278]
[1641075267160,0.94563836,47281.0,47280.0,0.4951278]
[1641075267556,0.96683038,47281.0,47280.0,0.4951278]
[1641075267756,0.94502361,47281.0,47280.0,0.4951278]
[1641075268756,0.56180573,47281.0,47280.0,0.4951278]
[1641075269557,0.58368027,47281.0,47280.0,0.4951278]
[1641075269760,0.56373354,47281.0,47280.0,0.4951278]
[1641075270614,0.58489093,47281.0,47280.0,0.4951278]
[1641075270834,0.56301639,47281.0,47280.0,0.4951278]
[1641075271614,0.5814477,47281.0,47280.0,0.4951278]
[1641075271813,0.56029031,47281.0,47280.0,0.4951278]
[1641075272614,0.5812475,47281.0,47280.0,0.4951278]
[1641075273314,0.51029031,47281.0,47280.0,0.4951278]
[1641075273514,0.491859,47281.0,47280.0,0.4951278]
[1641075273764,1.10608179,47281.0,47280.0,0.4951278]
[1641075274267,0.51095096,47281.0,47280.0,0.4951278]
[1641075274663,0.53085217,47281.0,47280.0,0.4951278]
[1641075274863,0.51176021,47281.0,47280.0,0.4951278]
[1641075275663,0.53150826,47281.0,47280.0,0.4951278]
[1641075275866,0.51160705,47281.0,47280.0,0.4951278]
[1641075276665,0.53158662,47281.0,47280.0,0.4951278]
[1641075276967,0.51183857,47281.0,47280.0,0.4951278]
[1641075277997,1.1069694,47281.0,47280.0,0.4951278]
[1641075278199,1.12746836,47281.0,47280.0,0.4951278]
[1641075278398,1.10748879,47281.0,47280.0,0.4951278]
[1641075278797,1.10860188,47281.0,47280.0,0.4951278]
[1641075279600,1.13049292,47281.0,47280.0,0.4951278]
[1641075279899,0.51375004,47281.0,47280.0,0.4951278]
[1641075280704,0.53415106,47281.0,47280.0,0.4951278]
[1641075280909,0.04816002,47281.0,47280.0,1.9451278]
[1641075281165,0.02040102,47281.0,47280.0,2.94085462]
[1641075281354,0.02040102,47281.0,47280.0,2.5275392]
[1641075281751,1.02e-06,47281.0,47280.0,2.5275392]
[1641075281950,0.23120158,47282.0,47280.0,2.71246476]
[1641075282150,0.59507226,47289.0,47282.0,0.8]
[1641075282352,0.59507226,47289.0,47287.0,0.00122891]
[1641075282552,0.0001278,47288.0,47287.0,0.00122891]
[1641075282755,0.0001278,47288.0,47287.0,1.74015391]
[1641075282955,0.00023735,47294.0,47289.0,0.41942656]
[1641075283152,0.00023735,47294.0,47292.0,0.24735928]
[1641075283351,0.60487891,47295.0,47293.0,0.86423565]
[1641075283553,0.00980665,47295.0,47294.0,0.86123809]
[1641075283752,0.00980665,47295.0,47294.0,1.20016309]
[1641075284151,0.00980665,47295.0,47294.0,0.70016309]
[1641075284352,0.59507226,47298.0,47295.0,0.052864]
[1641075284553,0.83499238,47302.0,47296.0,0.052864]
[1641075284554,0.59507226,47302.0,47296.0,0.052864]
[1641075284755,0.00029212,47297.0,47296.0,0.052864]
[1641075285003,0.00029212,47297.0,47296.0,0.43194704]
[1641075285604,0.00029212,47297.0,47296.0,0.98194704]
[1641075285805,0.00029212,47297.0,47296.0,1.28891632]
[1641075286005,0.00029212,47297.0,47296.0,1.34178032]
[1641075286408,0.20529212,47298.0,47296.0,1.34178032]
[1641075286605,0.20529212,47298.0,47297.0,1.12980847]
[1641075287104,0.20529212,47298.0,47297.0,1.17980847]
[1641075287306,0.20529212,47298.0,47297.0,1.12980847]
[1641075287504,0.20529212,47298.0,47297.0,1.17980847]
[1641075287705,0.20529212,47298.0,47297.0,1.19921227]
[1641075287909,0.20529212,47298.0,47297.0,0.77921227]
[1641075288107,0.20529212,47298.0,47297.0,0.0194038]
[1641075288309,0.20529212,47298.0,47288.0,0.052873]
[1641075288310,0.10447099,47296.0,47288.0,0.052873]
[1641075288507,0.00120565,47294.0,47293.0,0.00983519]
[1641075288753,0.09628965,47294.0,47293.0,0.00983519]
[1641075289054,0.48521465,47294.0,47293.0,0.00983519]
[1641075289451,0.58521465,47294.0,47293.0,0.00983519]
[1641075290351,0.58521465,47294.0,47289.0,0.00014606]
[1641075290652,0.155782,47292.0,47285.0,0.00021909]
[1641075290850,0.338925,47291.0,47285.0,0.00021909]
[1641075291050,0.438925,47291.0,47285.0,0.00021909]
[1641075291450,0.05289,47286.0,47281.0,0.00029212]
[1641075294802,0.05,47287.0,47281.0,0.00029212]
[1641075295302,0.05,47288.0,47281.0,0.00029212]
[1641075295504,0.14508629,47291.0,47281.0,0.00029212]
[1641075295704,0.21,47286.0,47281.0,0.00029212]
[1641075296350,0.24508629,47291.0,47286.0,0.2851278]
[1641075296552,0.052888,47289.0,47286.0,0.2851278]
[1641075296752,0.338925,47288.0,47287.0,0.00018258]
[1641075296952,0.388925,47288.0,47287.0,0.00018258]
[1641075297152,0.488925,47288.0,47287.0,0.00018258]
[1641075298953,0.531125,47288.0,47287.0,0.00018258]
[1641075303664,0.481125,47288.0,47287.0,0.00018258]
[1641075303860,0.1422,47288.0,47287.0,0.00018258]
[1641075304160,0.0422,47288.0,47287.0,0.00018258]
[1641075304362,0.0422,47288.0,47286.0,0.57974258]
[1641075304760,0.0422,47288.0,47287.0,0.00018258]
[1641075306360,0.381125,47288.0,47287.0,0.00018258]
[1641075306561,0.481125,47288.0,47287.0,0.00018258]
[1641075309114,0.48230904,47288.0,47287.0,0.00018258]
[1641075309514,0.48230904,47288.0,47287.0,0.02679182]
[1641075317501,0.48230904,47288.0,47287.0,0.01679182]
[1641075317704,0.48230904,47288.0,47287.0,0.01330462]
[1641075317904,0.48230904,47288.0,47287.0,0.01679182]
[1641075319067,0.14338404,47288.0,47287.0,0.01679182]
[1641075319566,0.04338404,47288.0,47287.0,0.01679182]
[1641075353227,0.04338404,47288.0,47287.0,0.80680994]
[1641075353228,0.00118404,47288.0,47287.0,0.80680994]
[1641075353426,0.00118404,47288.0,47287.0,0.80806151]
[1641075353826,0.00118404,47288.0,47287.0,0.40696839]
[1641075354226,0.00118404,47288.0,47287.0,0.42752739]
[1641075355228,0.00118404,47288.0,47287.0,0.44716342]
[1641075355429,0.00118404,47288.0,47287.0,0.85998053]
[1641075356275,0.00118404,47288.0,47287.0,0.84061216]
[1641075357276,0.00118404,47288.0,47287.0,0.86179516]
[1641075357474,0.00118404,47288.0,47287.0,0.8409685]
[1641075358276,0.00118404,47288.0,47287.0,0.86217767]
[1641075358478,0.00118404,47288.0,47287.0,0.84099467]
[1641075359275,0.00118404,47288.0,47287.0,0.86156696]
[1641075359476,0.00118404,47288.0,47287.0,0.84035779]
[1641075359934,0.00118404,47288.0,47287.0,0.94035779]
[1641075360135,0.00983541,47294.0,47287.0,0.94035779]
[1641075360336,0.00983541,47294.0,47293.0,0.00125436]
[1641075360536,0.00983541,47294.0,47293.0,0.77080854]
[1641075360739,0.00983541,47294.0,47293.0,0.78760036]
[1641075360940,0.00983541,47294.0,47293.0,1.42032574]
[1641075361340,0.00983541,47294.0,47293.0,1.43911973]
[1641075361537,0.00983541,47294.0,47293.0,1.49197973]
[1641075362339,0.10447099,47296.0,47294.0,0.10572161]
[1641075362541,0.10447099,47296.0,47295.0,0.69500061]
[1641075363446,0.10447099,47296.0,47295.0,0.71682921]
[1641075364458,0.10447099,47296.0,47295.0,0.73787813]
[1641075364659,0.10447099,47296.0,47295.0,0.71604953]
[1641075365359,0.10447099,47296.0,47295.0,0.73753231]
[1641075365561,0.10447099,47296.0,47295.0,0.71648339]
[1641075366061,0.10447099,47296.0,47295.0,0.73327521]
[1641075366460,0.10447099,47296.0,47295.0,0.7547612]
[1641075366660,0.10447099,47296.0,47295.0,0.73327842]
[1641075367523,0.10447099,47296.0,47295.0,0.73048265]
[1641075368421,0.10447099,47296.0,47295.0,0.75015149]
[1641075368624,0.10447099,47296.0,47295.0,0.73146127]
[1641075369523,0.10447099,47296.0,47295.0,0.73335547]
[1641075370425,0.10447099,47296.0,47295.0,0.75476933]
[1641075370627,0.10447099,47296.0,47295.0,0.73320629]
[1641075371473,0.10447099,47296.0,47295.0,0.7551145]
[1641075371670,0.10447099,47296.0,47295.0,0.73370064]
[1641075372470,0.10447099,47296.0,47295.0,0.75332868]
[1641075372669,0.10447099,47296.0,47295.0,0.73142047]
[1641075373171,0.10447099,47296.0,47295.0,1.84842047]
[1641075373969,0.10447099,47296.0,47295.0,1.86985719]
[1641075374172,0.10447099,47296.0,47295.0,1.85022915]
[1641075374371,0.10447099,47296.0,47295.0,1.86957806]
[1641075374571,0.10447099,47296.0,47295.0,1.84814134]
[1641075375219,0.10565482,47296.0,47295.0,1.84814134]
[1641075376021,0.10565482,47296.0,47295.0,1.86785952]
[1641075376222,0.10565482,47296.0,47295.0,1.84851061]
[1641075376423,0.10565482,47296.0,47295.0,1.86908749]
[1641075376619,0.10565482,47296.0,47295.0,1.84936931]
[1641075377422,0.10565482,47296.0,47295.0,1.87116586]
[1641075377822,0.10565482,47296.0,47295.0,1.85058898]
[1641075378425,0.10565482,47296.0,47295.0,1.87174406]
[1641075378675,0.10565482,47296.0,47295.0,1.4938719]
[1641075379570,0.10565482,47296.0,47295.0,1.51494609]
[1641075379771,0.10565482,47296.0,47295.0,1.49379101]
[1641075380174,0.10565482,47296.0,47295.0,0.37679101]
[1641075380575,0.10565482,47296.0,47295.0,0.39734801]
[1641075380775,0.10565482,47296.0,47295.0,1.09752265]
[1641075381374,0.10565482,47296.0,47295.0,0.37627382]
[1641075381575,0.10565482,47296.0,47295.0,0.39633724]
[1641075381775,0.10565482,47296.0,47295.0,0.37578024]
[1641075382426,0.10565482,47296.0,47295.0,0.39430608]
[1641075382725,0.10565482,47296.0,47295.0,0.37424266]
[1641075383127,0.10565482,47296.0,47295.0,0.97508325]
[1641075383625,0.10565482,47296.0,47295.0,0.97523818]
[1641075384429,0.10565482,47296.0,47295.0,0.99667954]
[1641075384627,0.10565482,47296.0,47295.0,0.97799877]
[1641075385431,0.10565482,47296.0,47295.0,0.39760507]
[1641075385634,0.10565482,47296.0,47295.0,0.37616371]
[1641075385833,0.10565482,47296.0,47295.0,0.9770043]
[1641075387188,0.10565482,47296.0,47295.0,0.3960141]
[1641075387386,0.10565482,47296.0,47295.0,0.37556721]
[1641075387596,0.10565482,47296.0,47295.0,0.39645643]
[1641075387787,0.10565482,47296.0,47295.0,0.37660604]
[1641075387990,0.10565482,47296.0,47295.0,0.97741163]
[1641075388588,0.10565482,47296.0,47295.0,0.99557403]
[1641075388789,0.10565482,47296.0,47295.0,0.39476844]
[1641075389591,0.10565482,47296.0,47295.0,0.41321417]
[1641075390624,0.10565482,47296.0,47295.0,0.43448856]
[1641075390925,0.10565482,47296.0,47295.0,0.37699121]
[1641075391524,0.10565482,47296.0,47295.0,0.39824524]
[1641075391723,0.10565482,47296.0,47295.0,0.37697085]
[1641075392623,0.10565482,47296.0,47295.0,0.39676749]
[1641075392826,0.10565482,47296.0,47295.0,0.37551346]
[1641075393668,0.10565482,47296.0,47295.0,0.39723366]
[1641075393862,0.10565482,47296.0,47295.0,0.37743702]
[1641075394664,0.10565482,47296.0,47295.0,0.39897333]
[1641075394863,0.10565482,47296.0,47295.0,0.37725313]
[1641075395664,0.10565482,47296.0,47295.0,0.39578084]
[1641075395867,0.10565482,47296.0,47295.0,0.37424453]
[1641075396565,0.10565482,47296.0,47295.0,0.39232383]
[1641075396764,0.10565482,47296.0,47295.0,0.37379612]
[1641075397625,0.10565482,47296.0,47295.0,0.39442128]
[1641075398423,0.10565482,47296.0,47295.0,0.35571682]
[1641075398627,0.10565482,47296.0,47295.0,0.37685529]
[1641075399624,0.10565482,47296.0,47295.0,0.39688285]
[1641075399824,0.10565482,47296.0,47295.0,0.37574438]
[1641075400728,0.10565482,47296.0,47295.0,0.37764802]
[1641075401567,0.10565482,47296.0,47295.0,0.39613555]
[1641075401764,0.10565482,47296.0,47295.0,0.37420435]
[1641075402264,0.10565482,47296.0,47295.0,0.97501084]
[1641075402665,0.10565482,47296.0,47295.0,0.99543187]
[1641075402867,0.10565482,47296.0,47295.0,0.97694434]
[1641075403665,0.10565482,47296.0,47295.0,0.99798633]
[1641075403866,0.10565482,47296.0,47295.0,0.9775653]
[1641075405211,0.10565482,47296.0,47295.0,0.99622601]
[1641075405414,0.10565482,47296.0,47295.0,0.97518402]
[1641075405611,0.10565482,47296.0,47295.0,0.99421084]
[1641075406612,0.10565482,47296.0,47295.0,1.01479022]
[1641075406812,0.10565482,47296.0,47295.0,0.97710269]
[1641075407614,0.10565482,47296.0,47295.0,0.99866194]
[1641075407813,0.10565482,47296.0,47295.0,0.97808256]
[1641075408673,0.10565482,47296.0,47295.0,0.39787041]
[1641075408870,0.10565482,47296.0,47295.0,0.97714391]
[1641075409769,0.10565482,47296.0,47295.0,0.99867518]
[1641075409969,0.10565482,47296.0,47295.0,1.02808084]
[1641075410770,0.10565482,47296.0,47295.0,1.04772749]
[1641075410971,0.10565482,47296.0,47295.0,1.02619622]
[1641075411771,0.10565482,47296.0,47295.0,1.04440354]
[1641075411972,0.10565482,47296.0,47295.0,0.97475689]
[1641075412171,0.10565482,47296.0,47295.0,0.37392414]
[1641075412630,0.10565482,47296.0,47295.0,0.39579951]
[1641075412831,0.10565482,47296.0,47295.0,0.37759219]
[1641075413233,0.10565482,47296.0,47295.0,0.03866719]
[1641075413432,0.49294103,47296.0,47295.0,0.03866719]
[1641075413633,0.10565482,47296.0,47295.0,0.06030093]
[1641075413830,0.10565482,47296.0,47295.0,0.03842556]
[1641075414835,0.10565482,47296.0,47295.0,0.01679182]
[1641075419912,0.47814624,47296.0,47295.0,0.01679182]
[1641075420614,0.10565482,47296.0,47295.0,0.01679182]
[1641075421616,0.44457982,47296.0,47295.0,0.01679182]
[1641075422419,0.81780062,47296.0,47295.0,0.01679182]
[1641075423420,0.44457982,47296.0,47295.0,0.01679182]
[1641075424276,0.10565482,47296.0,47295.0,0.01679182]
[1641075430136,0.13733542,47296.0,47295.0,0.01679182]
[1641075434930,0.10565482,47296.0,47295.0,0.01679182]
[1641075436333,0.44457982,47296.0,47295.0,0.01679182]
[1641075438869,0.10565482,47296.0,47295.0,0.01679182]
[1641075440170,2.8186181,47296.0,47295.0,0.01679182]
[1641075440372,3.1575431,47296.0,47295.0,0.01679182]
[1641075440973,0.44457982,47296.0,47295.0,0.01679182]
[1641075441372,0.10565482,47296.0,47295.0,0.01679182]
[1641075456282,1.97520828,47296.0,47295.0,0.01679182]
[1641075456482,2.31413328,47296.0,47295.0,0.01679182]
[1641075458135,0.44457982,47296.0,47295.0,0.01679182]
[1641075458333,0.10565482,47296.0,47295.0,0.01679182]
[1641075462383,2.6931736,47296.0,47295.0,0.01679182]
[1641075462580,3.0320986,47296.0,47295.0,0.01679182]
[1641075463181,3.1320986,47296.0,47295.0,0.01679182]
[1641075464681,0.54457982,47296.0,47295.0,0.01679182]
[1641075466233,3.20405425,47296.0,47295.0,0.01679182]
[1641075467232,0.54457982,47296.0,47295.0,0.01679182]
[1641075467436,0.20565482,47296.0,47295.0,0.01679182]
[1641075467632,0.10565482,47296.0,47295.0,0.01679182]
[1641075502088,0.10640467,47296.0,47295.0,0.01679182]
[1641075511824,0.09640467,47296.0,47295.0,0.01679182]
[1641075515379,0.09640467,47296.0,47295.0,0.35571682]
[1641075515982,0.09640467,47296.0,47295.0,1.47271682]
[1641075516182,0.09640467,47296.0,47295.0,1.47337682]
[1641075516578,0.09640467,47296.0,47295.0,1.49392559]
[1641075516778,0.09640467,47296.0,47295.0,1.54678659]
[1641075516979,0.09640467,47296.0,47295.0,2.6313252]
[1641075517622,0.09640467,47296.0,47295.0,2.65129774]
[1641075517822,0.09640467,47296.0,47295.0,2.63074897]
[1641075518726,0.09640467,47296.0,47295.0,2.6289371]
[1641075519523,0.09640467,47296.0,47295.0,2.65074513]
[1641075519722,0.09630049,47296.0,47295.0,2.63258446]
[1641075520529,0.09630049,47296.0,47295.0,2.65215569]
[1641075520725,0.09630049,47296.0,47295.0,2.63034766]
[1641075521573,0.09630049,47296.0,47295.0,2.64903832]
[1641075521773,0.09630049,47296.0,47295.0,2.62946709]
[1641075522375,0.09630049,47296.0,47295.0,2.67946709]
[1641075522573,0.09630049,47296.0,47295.0,2.6992606]
[1641075522774,0.09630049,47296.0,47295.0,2.68056994]
[1641075523173,0.09630049,47296.0,47295.0,2.63056994]
[1641075523374,0.09630049,47296.0,47295.0,1.90932111]
[1641075524274,0.09630049,47296.0,47295.0,1.92857617]
[1641075524475,0.09630049,47296.0,47295.0,1.90878266]
[1641075524675,0.09630049,47296.0,47295.0,1.92843428]
[1641075524920,0.09630049,47296.0,47295.0,1.90917922]
[1641075525122,0.09630049,47296.0,47295.0,1.90851922]
[1641075525623,0.09630049,47296.0,47295.0,1.92823682]
[1641075525824,0.09630049,47296.0,47295.0,1.9085852]
[1641075526623,0.09630049,47296.0,47295.0,1.92967742]
[1641075526825,0.09630049,47296.0,47295.0,1.90647262]
[1641075527023,0.09630049,47296.0,47295.0,1.8964552]
[1641075527424,0.09630049,47296.0,47295.0,1.90935982]
[1641075527626,0.09630049,47296.0,47295.0,1.93001325]
[1641075527824,0.09748432,47296.0,47295.0,1.90872103]
[1641075528674,0.09748432,47296.0,47295.0,1.92763982]
[1641075528878,0.09748432,47296.0,47295.0,1.90698639]
[1641075529675,0.09748432,47296.0,47295.0,1.92661497]
[1641075529875,0.09748432,47296.0,47295.0,1.90769618]
[1641075530675,0.09748432,47296.0,47295.0,1.92717651]
[1641075530875,0.09748432,47296.0,47295.0,1.90754793]
[1641075531676,0.09748432,47296.0,47295.0,3.03445819]
[1641075531877,0.09748432,47296.0,47295.0,3.21690515]
[1641075532078,0.09748432,47296.0,47295.0,2.79515537]
[1641075532725,0.09748432,47296.0,47295.0,1.97198464]
[1641075532926,0.09748432,47296.0,47295.0,1.95339487]
[1641075533327,0.09748432,47296.0,47295.0,1.95405487]
[1641075533727,0.09748432,47296.0,47295.0,1.97528079]
[1641075533927,0.09748432,47296.0,47295.0,1.69013103]
[1641075534730,0.09748432,47296.0,47295.0,1.71021036]
[1641075534929,0.09748432,47296.0,47295.0,1.68898444]
[1641075535330,0.09748432,47296.0,47295.0,2.40901959]
[1641075535633,0.09748432,47296.0,47295.0,2.42864976]
[1641075535930,0.09748432,47296.0,47295.0,1.68853528]
[1641075536200,0.09748432,47296.0,47295.0,2.40857043]
[1641075536686,0.09748432,47296.0,47295.0,2.42891973]
[1641075536992,0.09748432,47296.0,47295.0,2.40928956]
[1641075537887,0.09748432,47296.0,47295.0,2.42843481]
[1641075538087,0.09748432,47296.0,47295.0,2.40808551]
[1641075538687,0.09748432,47296.0,47295.0,2.42683795]
[1641075538887,0.09748432,47296.0,47295.0,2.4076927]
[1641075539691,0.09748432,47296.0,47295.0,2.42695058]
[1641075539925,0.09748432,47296.0,47295.0,2.40819814]
[1641075540127,0.09748432,47296.0,47295.0,1.68816299]
[1641075540828,0.09748432,47296.0,47295.0,1.68914292]
[1641075541828,0.09748432,47296.0,47295.0,1.70980207]
[1641075542031,0.09748432,47296.0,47295.0,1.68956426]
[1641075542930,0.09748432,47296.0,47295.0,1.69010066]
[1641075543875,0.09748432,47296.0,47295.0,1.6900028]
[1641075544876,0.09748432,47296.0,47295.0,1.70906945]
[1641075545076,0.09748432,47296.0,47295.0,1.68797176]
[1641075545978,0.09748432,47296.0,47295.0,1.69017736]
[1641075546778,0.09748432,47296.0,47295.0,2.43169463]
[1641075546979,0.09748432,47296.0,47295.0,2.41042238]
[1641075547427,0.09748432,47296.0,47295.0,1.69039869]
[1641075547834,0.09748432,47296.0,47295.0,1.71142196]
[1641075548530,0.09748432,47296.0,47295.0,1.66890511]
[1641075548932,0.09748432,47296.0,47295.0,1.68835477]
[1641075549738,0.09748432,47296.0,47295.0,1.43835477]
[1641075549934,0.09748432,47296.0,47295.0,1.45817361]
[1641075550135,0.09748432,47296.0,47295.0,1.43872395]
[1641075550735,0.09748432,47296.0,47295.0,2.1587395]
[1641075551190,0.09748432,47296.0,47295.0,1.43872395]
[1641075551387,0.09748432,47296.0,47295.0,1.46033001]
[1641075551588,0.09748432,47296.0,47295.0,1.44051117]
[1641075551790,0.09748432,47296.0,47295.0,1.46154703]
[1641075552588,0.09748432,47296.0,47295.0,2.16052993]
[1641075552791,0.09748432,47296.0,47295.0,2.13892387]
[1641075553389,0.09785934,47296.0,47295.0,2.13892387]
[1641075553588,0.09785934,47296.0,47295.0,2.15938603]
[1641075553888,0.09785934,47296.0,47295.0,1.45757741]
[1641075554190,0.09785934,47296.0,47295.0,1.43711525]
[1641075555039,0.09785934,47296.0,47295.0,1.43815117]
[1641075556037,0.09785934,47296.0,47295.0,1.43866313]
[1641075556238,0.09785934,47296.0,47295.0,2.56031647]
[1641075556638,0.09785934,47296.0,47295.0,1.43866313]
[1641075557039,0.09785934,47296.0,47295.0,1.45946555]
[1641075557240,0.09785934,47296.0,47295.0,1.43970753]
[1641075557441,0.09785934,47296.0,47295.0,1.72079908]
[1641075558042,0.09785934,47296.0,47295.0,1.74238538]
[1641075558243,0.09785934,47296.0,47295.0,1.72158296]
[1641075559080,0.09785934,47296.0,47295.0,1.74080663]
[1641075560079,0.09785934,47296.0,47295.0,1.75991862]
[1641075560282,0.09785934,47296.0,47295.0,1.71910865]
[1641075561081,0.09785934,47296.0,47295.0,1.73846433]
[1641075561282,0.09785934,47296.0,47295.0,1.71935234]
[1641075561483,0.00766594,47299.0,47298.0,1.455925]
[1641075561983,0.00766594,47299.0,47298.0,1.608772]
[1641075562184,0.00323297,47309.0,47298.0,1.608772]
[1641075562442,0.00038342,47308.0,47298.0,1.217]
[1641075562845,0.00980257,47304.0,47302.0,0.77368322]
[1641075563042,0.00980257,47304.0,47303.0,0.33888]
[1641075563344,0.00980257,47304.0,47303.0,0.39172681]
[1641075563943,0.00980257,47304.0,47303.0,0.46603748]
[1641075564341,0.00323297,47309.0,47305.0,0.15854067]
[1641075564544,0.00323297,47309.0,47306.0,0.05]
[1641075564743,0.00038342,47308.0,47306.0,0.05]
[1641075565142,0.00036516,47307.0,47306.0,0.102848]
[1641075565744,0.00036516,47307.0,47306.0,0.441728]
[1641075566212,0.00036516,47307.0,47306.0,0.494575]
[1641075566404,0.00036516,47307.0,47306.0,0.33888]
[1641075566604,0.00036516,47307.0,47305.0,0.05284689]
[1641075567004,0.0003469,47306.0,47305.0,0.05284689]
[1641075567406,0.0003469,47306.0,47305.0,0.10569889]
[1641075567607,0.0003469,47306.0,47305.0,0.15569889]
[1641075569207,0.03069723,47310.0,47305.0,0.15569889]
[1641075569408,0.03069723,47310.0,47306.0,0.05285]
[1641075569610,0.03069723,47310.0,47306.0,0.10569994]
[1641075571429,0.03069723,47310.0,47307.0,0.05284893]
[1641075572030,0.03069723,47310.0,47307.0,0.10569793]
[1641075572431,0.03069723,47310.0,47308.0,0.01639182]
[1641075576598,0.59420513,47314.0,47310.0,0.05284574]
[1641075576999,0.00012781,47313.0,47310.0,0.05284574]
[1641075577443,0.00010955,47312.0,47310.0,0.05284574]
[1641075577643,0.00010955,47312.0,47306.0,0.10284978]
[1641075577845,0.03347225,47314.0,47306.0,0.10284978]
[1641075577846,9.129e-05,47311.0,47306.0,0.10284978]
[1641075578243,7.303e-05,47310.0,47306.0,0.10284978]
[1641075578649,7.303e-05,47310.0,47305.0,0.77083622]
[1641075578844,7.303e-05,47310.0,47304.0,0.04122853]
[1641075579046,0.0011835,47309.0,47305.0,0.38888]
[1641075579245,0.0011835,47309.0,47305.0,0.4094817]
[1641075579847,0.0011835,47309.0,47305.0,0.46233236]
[1641075580046,0.0011835,47309.0,47305.0,0.48393512]
[1641075580246,0.0011835,47309.0,47305.0,0.46333342]
[1641075580548,0.0011835,47309.0,47305.0,0.41048276]
[1641075581202,0.0011835,47309.0,47305.0,0.43036149]
[1641075581591,0.0011835,47309.0,47305.0,0.48321249]
[1641075581791,0.0011835,47309.0,47305.0,0.48321329]
[1641075582192,0.0011835,47309.0,47305.0,0.50349444]
[1641075582392,0.0011835,47309.0,47305.0,0.46201295]
[1641075582595,0.0011835,47309.0,47305.0,0.46201215]
[1641075582794,0.0011835,47309.0,47307.0,0.01639182]
[1641075588151,0.0011835,47309.0,47304.0,0.10285071]
[1641075588352,0.0011835,47309.0,47308.0,0.01639182]
[1641075599289,0.37481326,47309.0,47308.0,0.01639182]
[1641075599690,0.0011835,47309.0,47308.0,0.01639182]
[1641075601778,0.37441544,47309.0,47308.0,0.01639182]
[1641075602985,2.77362883,47309.0,47308.0,0.01639182]
[1641075603582,3.11371654,47309.0,47308.0,0.01639182]
[1641075603805,3.70665511,47309.0,47308.0,0.01639182]
[1641075604207,3.11371654,47309.0,47308.0,0.01639182]
[1641075608841,3.26371654,47309.0,47308.0,0.01639182]
[1641075609041,3.72376063,47309.0,47308.0,0.01639182]
[1641075610242,4.09870892,47309.0,47308.0,0.01639182]
[1641075610642,4.04870892,47309.0,47308.0,0.01639182]